bitfinex/quotes_SOLUSD_20250123
["timestamp","ask_amount","ask_price","bid_price","bid_amount"]
[1737654076966,36.20412714,251.6,251.42,0.2]
[1737654077128,30.0,251.55,251.43,20.0]
[1737654078120,30.0,251.55,251.47,20.0]
[1737654079248,30.0,251.55,251.4,8.0869]
[1737654079647,30.0,251.55,251.44,43.776884]
[1737654081566,23.88,251.61,251.44,43.776884]
[1737654082957,27.8544,251.61,251.44,43.776884]
[1737654083139,36.20412714,251.6,251.44,43.776884]
[1737654083558,53.88,251.58,251.43,20.0]
[1737654083771,66.20412714,251.58,251.42,0.03]
[1737654083940,23.88,251.56,251.42,0.03]
[1737654084136,23.88,251.56,251.43,20.0]
[1737654084545,30.0,251.54,251.43,20.0]
[1737654085160,23.88,251.56,251.42,0.03]
[1737654086460,1.5785,251.57,251.42,0.03]
[1737654086864,23.88,251.56,251.42,0.03]
[1737654087049,27.8553,251.55,251.42,0.03]
[1737654087668,23.88,251.53,251.42,0.03]
[1737654089675,30.0,251.51,251.42,0.03]
[1737654092347,30.0,251.51,251.45,20.0]
[1737654094481,23.88,251.59,251.45,20.0]
[1737654094652,23.943,251.6,251.45,20.0]
[1737654094855,23.943,251.6,251.49,20.0]
[1737654096476,0.063,251.6,251.49,20.0]
[1737654096988,0.063,251.6,251.45,23.776884]
[1737654097190,0.063,251.6,251.48,20.0]
[1737654099079,0.063,251.6,251.53,23.776884]
[1737654099272,0.063,251.6,251.56,20.0]
[1737654100876,0.063,251.6,251.48,20.0]
[1737654101381,0.063,251.6,251.46,23.776884]
[1737654102065,0.063,251.6,251.49,20.0]
[1737654103382,0.063,251.6,251.53,20.0]
[1737654103891,0.063,251.6,251.57,20.0]
[1737654104505,0.063,251.64,251.62,23.776884]
[1737654104797,0.063,251.77,251.7,43.776884]
[1737654105094,98.65272497,251.84,251.75,20.0]
[1737654105298,98.65272497,251.84,251.79,20.0]
[1737654105465,50.92445123,251.87,251.83,43.776884]
[1737654105771,34.13174721,251.88,251.87,44.776884]
[1737654105975,32.33174721,251.88,251.87,355.776884]
[1737654106160,7.30312771,251.88,251.87,355.776884]
[1737654106367,0.03,251.94,251.88,23.776884]
[1737654106591,0.03,251.94,251.87,335.776884]
[1737654106592,0.03,252.08,251.89,24.776884]
[1737654106910,0.03,252.08,251.96,23.776884]
[1737654107294,0.03,252.08,251.96,1.0]
[1737654107800,0.063,252.09,252.04,23.776884]
[1737654107972,0.03,252.2,252.06,1.0]
[1737654108176,78.87697804,252.3,252.15,19.4153905]
[1737654108375,78.87697804,252.3,252.16,19.94519103]
[1737654108573,102.75697804,252.3,252.17,19.97549114]
[1737654108795,30.0,252.27,252.18,0.60370685]
[1737654109098,30.0,252.22,252.19,0.05074759]
[1737654109299,47.656884,252.21,252.16,96.01820481]
[1737654109496,19.65386922,252.2,252.17,0.11191113]
[1737654109700,23.88,252.21,252.16,96.01820481]
[1737654109999,23.88,252.2,252.17,0.09222647]
[1737654110185,23.776884,252.21,252.16,96.01820481]
[1737654110373,23.776884,252.21,252.17,0.192819]
[1737654110926,30.0,252.19,252.06,19.01448335]
[1737654111090,19.65386922,252.18,252.1,0.36220589]
[1737654111290,19.65386922,252.18,252.06,19.01448335]
[1737654111291,19.65386922,252.16,252.07,0.39119806]
[1737654111806,19.65386922,252.18,252.07,0.39119806]
[1737654112521,31.6144,252.19,252.07,0.39119806]
[1737654112722,1.6144,252.19,252.09,20.0]
[1737654112893,49.65386922,252.26,252.1,0.3923561]
[1737654113518,3.9643,252.25,252.1,0.3923561]
[1737654113821,3.9643,252.25,252.11,20.0]
[1737654114024,49.65386922,252.22,252.12,0.06278361]
[1737654114325,30.0,252.18,252.12,0.50517208]
[1737654114515,49.65386922,252.18,252.09,0.52287774]
[1737654114727,3.9655,252.17,252.09,0.52287774]
[1737654117217,3.9655,252.17,252.06,20.0]
[1737654117409,3.9655,252.17,252.07,0.46854984]
[1737654117806,19.65386922,252.2,252.07,0.46854984]
[1737654118016,3.9652,252.2,252.08,0.08059937]
[1737654118195,3.9652,252.2,252.09,0.16140389]
[1737654118401,3.9652,252.2,252.06,3.9672]
[1737654118599,3.9652,252.2,252.07,0.29972657]
[1737654119022,3.9652,252.2,252.07,24.26672657]
[1737654119231,30.0,252.17,252.07,0.29972657]
[1737654119525,49.65386922,252.14,251.98,19.28719531]
[1737654119701,49.65386922,252.14,252.01,0.46855263]
[1737654120315,53.88,252.13,252.01,0.46855263]
[1737654120619,23.88,252.1,252.01,0.46855263]
[1737654120824,23.88,252.1,251.99,20.1398229]
[1737654121122,23.88,252.08,251.99,0.58655673]
[1737654121419,23.88,252.08,251.97,6.0638]
[1737654121617,23.88,252.08,251.98,0.49290033]
[1737654121813,23.88,252.08,251.92,43.04232672]
[1737654122218,23.88,252.05,251.91,19.68932616]
[1737654122619,29.98934612,252.05,251.92,19.26544272]
[1737654122827,49.64321534,252.05,251.91,23.65892616]
[1737654123021,23.88,252.03,251.91,23.65892616]
[1737654123319,23.88,252.03,251.9,19.81010153]
[1737654123320,73.53386922,252.03,251.9,19.81010153]
[1737654123529,23.88,252.01,251.82,19.61929337]
[1737654123702,23.88,252.01,251.82,19.24239369]
[1737654124327,23.88,251.99,251.8,19.99607119]
[1737654124703,23.88,251.99,251.85,20.0]
[1737654124903,23.88,251.99,251.85,39.19272124]
[1737654125110,6.10934612,251.96,251.85,39.19272124]
[1737654125309,6.10934612,251.96,251.86,0.09837309]
[1737654125805,29.98934612,251.96,251.86,0.09837309]
[1737654126526,29.98934612,251.96,251.85,39.82916396]
[1737654127005,6.10934612,251.93,251.85,39.82916396]
[1737654127922,6.10934612,251.93,251.86,13.8965]
[1737654128510,6.10934612,251.94,251.86,3.9704]
[1737654128922,6.10934612,251.94,251.86,4.0004]
[1737654129613,6.10934612,251.88,251.86,4.0004]
[1737654130905,4.612e-05,251.88,251.86,4.0004]
[1737654131621,3.975,251.98,251.87,20.0]
[1737654131928,3.975,251.98,251.89,20.0]
[1737654132504,3.975,251.98,251.89,9.9246]
[1737654133319,23.88,252.02,251.89,9.9246]
[1737654133524,6.5832,252.05,251.92,20.0]
[1737654134229,6.5832,252.05,251.93,23.776884]
[1737654134429,0.063,252.08,251.96,20.0]
[1737654134632,0.063,252.08,251.97,13.8905]
[1737654136941,0.063,252.08,252.0,20.0]
[1737654137435,0.063,252.08,252.01,33.8882]
[1737654137631,0.063,252.08,252.02,23.776884]
[1737654138009,0.063,252.08,252.01,33.8882]
[1737654138439,0.063,252.08,252.01,3.968]
[1737654139225,60.4632,252.04,251.9,3.9698]
[1737654139408,23.88,252.03,251.89,9.9248]
[1737654139610,30.0,252.02,251.89,9.9248]
[1737654140311,30.0,252.02,251.93,20.0]
[1737654140522,6.5832,252.04,251.93,20.0]
[1737654140707,21.6468,252.06,251.93,20.0]
[1737654140912,1.6468,252.06,251.94,23.776884]
[1737654141524,0.063,252.08,251.94,23.776884]
[1737654142204,0.063,252.08,251.92,20.0]
[1737654142428,0.063,252.08,251.93,23.776884]
[1737654142628,0.063,252.08,251.96,20.0]
[1737654143632,0.063,252.08,251.98,20.0]
[1737654144010,0.063,252.08,251.98,332.0]
[1737654144425,0.063,252.08,251.99,24.776884]
[1737654144810,0.063,252.08,252.06,20.0]
[1737654145330,1.5154,252.19,252.06,20.0]
[1737654145631,1.5154,252.19,252.1,20.0]
[1737654147538,30.1696,252.23,252.11,13.8828]
[1737654147723,6.2896,252.23,252.11,13.8828]
[1737654148336,1.5171,252.25,252.15,20.0]
[1737654149614,1.5171,252.25,252.16,13.88]
[1737654149815,1.5171,252.25,252.16,3.9657]
[1737654151134,53.88,252.23,252.08,13.8842]
[1737654152020,20.0,252.2,252.08,13.8842]
[1737654153116,20.0,252.2,252.08,9.9173]
[1737654153741,23.88,252.23,252.08,9.9173]
[1737654153940,20.0,252.22,252.08,9.9173]
[1737654154142,43.88,252.22,252.08,9.9173]
[1737654154849,43.53386922,252.2,252.08,9.9173]
[1737654155058,73.53386922,252.2,252.05,13.886]
[1737654155343,53.88,252.2,252.05,11.49535094]
[1737654155838,30.0,252.16,252.05,9.9186]
[1737654156143,60.0752,252.16,252.03,3.9677]
[1737654156635,30.0,252.15,252.03,3.9677]
[1737654157243,30.0,252.15,252.01,9.9202]
[1737654157837,33.9659,252.15,252.01,9.9202]
[1737654158543,53.88,252.13,252.01,9.9202]
[1737654158925,30.0,252.12,252.01,9.9202]
[1737654160139,30.0,252.12,252.01,13.8882]
[1737654160530,30.0,252.13,252.01,13.8882]
[1737654161017,23.776884,252.15,252.01,13.8882]
[1737654161222,23.776884,252.15,252.01,3.968]
[1737654162724,55.84906922,252.16,252.01,3.968]
[1737654162924,30.0,252.15,252.01,13.8882]
[1737654164345,6.1952,252.16,252.01,13.8882]
[1737654164546,30.0,252.15,252.01,13.8882]
[1737654165046,30.0,252.15,252.01,13.9182]
[1737654165549,6.1952,252.16,252.01,13.9182]
[1737654165844,53.776884,252.18,252.04,20.0]
[1737654166146,30.0,252.21,252.04,20.0]
[1737654166445,6.3995,252.23,252.05,43.776884]
[1737654167449,6.3995,252.23,252.05,355.776884]
[1737654168354,6.3995,252.23,252.06,13.8855]
[1737654170165,0.063,252.23,252.09,20.0]
[1737654170651,0.063,252.23,252.1,13.8832]
[1737654170838,0.063,252.23,252.11,23.776884]
[1737654171732,0.063,252.23,252.13,20.0]
[1737654172455,0.063,252.23,252.14,13.8811]
[1737654177537,0.063,252.23,252.14,9.9151]
[1737654180655,0.063,252.23,252.17,20.0]
[1737654182756,0.063,252.23,252.16,20.0]
[1737654183059,0.063,252.3,252.17,23.776884]
[1737654183561,0.063,252.3,252.16,20.0]
[1737654184959,0.063,252.3,252.17,13.8794]
[1737654185337,23.88,252.23,252.13,3.9662]
[1737654186571,27.8442,252.26,252.12,9.9156]
[1737654187956,30.0,252.17,252.12,9.9156]
[1737654188451,30.0,252.17,252.13,0.03]
[1737654189669,0.063,252.23,252.13,0.03]
[1737654190047,23.88,252.2,252.13,0.03]
[1737654190247,30.0,252.16,252.13,0.03]
[1737654200381,23.88,252.15,252.13,0.03]
[1737654200581,30.0,252.14,252.13,0.03]
[1737654201668,83.88,252.14,252.13,0.03]
[1737654201983,53.88,252.14,252.13,0.03]
[1737654204989,108.98572481,252.14,252.13,0.03]
[1737654205699,132.76260881,252.14,252.13,0.03]
[1737654205982,125.41997558,252.14,252.13,0.03]
[1737654210885,101.64309158,252.14,252.13,0.03]
[1737654211599,125.41997558,252.14,252.13,0.03]
[1737654216806,97.67709158,252.14,252.13,0.03]
[1737654217104,53.88,252.14,252.13,0.03]
[1737654222891,23.88,252.17,252.13,0.03]
[1737654223418,23.88,252.21,252.13,0.03]
[1737654224102,23.943,252.23,252.13,0.03]
[1737654225829,27.9076,252.23,252.13,0.03]
[1737654226015,23.88,252.19,252.13,0.03]
[1737654227426,30.0,252.14,252.13,0.03]
[1737654233913,53.88,252.14,252.13,0.03]
[1737654235340,30.0,252.14,252.13,0.03]
[1737654235836,30.063,252.23,252.13,0.03]
[1737654236005,41.88059768,252.23,252.13,0.03]
[1737654236210,23.88,252.22,252.13,0.03]
[1737654237331,23.88,252.19,252.13,0.03]
[1737654238843,30.0,252.14,252.13,0.03]
[1737654242828,53.943,252.23,252.13,0.03]
[1737654243251,23.88,252.18,252.13,0.03]
[1737654243454,31.73299768,252.18,252.13,0.03]
[1737654243752,30.0,252.14,252.13,0.03]
[1737654243930,53.88,252.14,252.13,0.03]
[1737654244839,23.88,252.15,252.13,0.03]
[1737654245834,43.88,252.15,252.13,0.03]
[1737654246431,30.0,252.14,252.13,0.03]
[1737654249852,20.0,252.2,252.13,0.03]
[1737654251531,23.88,252.22,252.13,0.03]
[1737654252253,53.88,252.22,252.13,0.03]
[1737654253254,57.8448,252.22,252.13,0.03]
[1737654254832,23.943,252.23,252.13,0.03]
[1737654256860,0.063,252.23,252.15,6.1341]
[1737654257082,0.063,252.23,252.18,20.0]
[1737654257959,0.063,252.23,252.18,332.0]
[1737654258541,0.063,252.23,252.18,20.0]
[1737654258734,0.063,252.3,252.23,23.776884]
[1737654260076,0.063,252.3,252.24,3.9644]
[1737654261003,0.063,252.3,252.24,13.8755]
[1737654261204,0.063,252.3,252.24,3.9644]
[1737654261698,0.063,252.3,252.2,3.9651]
[1737654261998,23.943,252.3,252.2,3.9651]
[1737654262174,23.88,252.28,252.18,3.9653]
[1737654262586,61.73299768,252.28,252.16,3.9657]
[1737654263796,66.14105326,252.28,252.16,3.9657]
[1737654264619,23.88,252.28,252.16,3.9657]
[1737654264799,23.88,252.29,252.16,13.88]
[1737654265178,20.0,252.29,252.16,13.88]
[1737654265504,0.063,252.3,252.17,23.776884]
[1737654265679,0.063,252.3,252.2,20.0]
[1737654265874,0.063,252.3,252.21,1.5327]
[1737654266499,0.063,252.3,252.22,6.3971]
[1737654266880,0.063,252.3,252.23,13.8761]
[1737654267386,0.063,252.3,252.24,23.776884]
[1737654267597,0.063,252.34,252.24,23.776884]
[1737654268305,0.0001,252.35,252.3,23.776884]
[1737654268899,23.88,252.48,252.3,23.776884]
[1737654268900,0.063,252.49,252.33,23.776884]
[1737654270102,0.063,252.49,252.34,13.8701]
[1737654270298,6.22235088,252.57,252.43,20.0]
[1737654270498,6.22235088,252.57,252.44,6.3787]
[1737654271218,20.0,252.5,252.39,1.5331]
[1737654272214,20.0,252.5,252.4,3.9619]
[1737654274220,12.26105326,252.55,252.4,3.9619]
[1737654274509,20.0,252.54,252.4,13.8668]
[1737654274712,20.0,252.5,252.4,3.9619]
[1737654274917,12.26105326,252.51,252.4,3.9619]
[1737654275112,20.0,252.48,252.39,1.5331]
[1737654275314,20.0,252.48,252.38,3.9622]
[1737654276527,3.9606,252.49,252.38,3.9622]
[1737654276712,3.9603,252.51,252.38,3.9622]
[1737654277026,40.10065326,252.55,252.38,13.8678]
[1737654277394,40.10065326,252.55,252.38,325.8678]
[1737654277820,27.8396,252.55,252.38,325.8678]
[1737654278195,27.8396,252.55,252.38,13.8678]
[1737654280511,3.9593,252.57,252.4,13.8668]
[1737654280722,40.10015326,252.59,252.41,1.5635]
[1737654281097,20.0,252.56,252.41,313.5635]
[1737654281631,20.0,252.56,252.42,13.8657]
[1737654282328,0.03,252.55,252.43,23.776884]
[1737654282508,0.03,252.55,252.45,23.776884]
[1737654283301,0.03,252.55,252.44,6.389]
[1737654283624,0.03,252.55,252.45,13.864]
[1737654284325,0.03,252.55,252.45,37.640884]
[1737654284698,0.03,252.55,252.45,349.640884]
[1737654286228,0.03,252.55,252.45,325.864]
[1737654286536,0.03,252.55,252.45,13.864]
[1737654289009,0.03,252.55,252.45,3.9611]
[1737654289536,32.29105326,252.55,252.45,3.9611]
[1737654289846,20.03,252.55,252.45,3.9611]
[1737654290805,23.9897,252.55,252.45,3.9611]
[1737654291520,20.03,252.55,252.45,3.9611]
[1737654291730,23.9897,252.55,252.45,3.9611]
[1737654291929,20.0,252.54,252.45,3.9611]
[1737654292918,0.03,252.55,252.45,3.9611]
[1737654294737,0.03,252.55,252.45,4.0241]
[1737654300331,20.0,252.54,252.45,4.0241]
[1737654300507,20.0,252.46,252.45,0.063]
[1737654301342,12.26105326,252.46,252.45,0.063]
[1737654301635,42.26105326,252.46,252.45,0.063]
[1737654301838,37.83515379,252.46,252.45,0.063]
[1737654302149,62.61515379,252.46,252.45,0.063]
[1737654302335,93.95576895,252.46,252.45,0.063]
[1737654302535,97.91676895,252.46,252.45,0.063]
[1737654302941,101.88676895,252.46,252.45,0.063]
[1737654303736,37.83515379,252.46,252.45,0.063]
[1737654303945,30.0,252.46,252.45,4.0241]
[1737654304129,1.6346,252.52,252.45,4.0241]
[1737654304543,0.03,252.55,252.45,4.0241]
[1737654305442,12.23393229,252.54,252.45,4.0241]
[1737654305623,0.03,252.55,252.45,4.0241]
[1737654306235,20.0,252.49,252.45,0.063]
[1737654306433,12.23393229,252.48,252.45,0.063]
[1737654306639,20.0,252.46,252.45,0.063]
[1737654307636,19.8497989,252.46,252.45,0.063]
[1737654309147,12.23393229,252.54,252.46,3.961]
[1737654309339,0.03,252.55,252.46,3.961]
[1737654310852,0.03,252.55,252.47,1.504]
[1737654311145,0.03,252.55,252.48,6.3421]
[1737654311552,0.03,252.55,252.47,1.504]
[1737654311553,12.26393229,252.55,252.47,1.504]
[1737654312231,0.03,252.55,252.47,1.504]
[1737654313452,12.23393229,252.53,252.47,1.504]
[1737654314550,12.26393229,252.55,252.47,1.504]
[1737654314854,12.23393229,252.53,252.45,0.063]
[1737654316333,12.26393229,252.55,252.45,0.063]
[1737654316764,0.03,252.55,252.45,4.0241]
[1737654316936,0.03,252.55,252.48,23.776884]
[1737654317135,0.03,252.55,252.49,8.8272]
[1737654317945,0.03,252.55,252.49,7.8272]
[1737654319462,0.03,252.55,252.49,11.7876]
[1737654319645,0.03,252.55,252.49,12.7876]
[1737654319845,0.03,252.55,252.49,334.6889]
[1737654320059,0.03,252.55,252.52,1.0]
[1737654320377,0.063,252.61,252.57,23.776884]
[1737654321051,0.063,252.61,252.58,3.9591]
[1737654321247,0.063,252.61,252.59,23.776884]
[1737654321635,0.063,252.61,252.58,3.9591]
[1737654321837,0.063,252.61,252.59,6.3876]
[1737654322139,0.063,252.61,252.6,23.776884]
[1737654322735,0.063,252.61,252.6,26.281284]
[1737654323161,0.063,252.61,252.6,30.240084]
[1737654323459,6.22235088,252.74,252.64,23.776884]
[1737654323956,6.22235088,252.74,252.66,1.0]
[1737654324463,0.03,252.81,252.68,23.776884]
[1737654324636,0.03,252.81,252.73,1.0]
[1737654324842,0.03,252.81,252.74,23.776884]
[1737654325147,0.03,252.81,252.74,3.9566]
[1737654326355,0.03,252.81,252.76,3.9563]
[1737654326657,6.22235088,252.88,252.81,7.6435]
[1737654326849,6.22235088,252.88,252.82,23.776884]
[1737654327251,6.22235088,252.88,252.81,318.6435]
[1737654327450,6.22235088,252.88,252.81,6.6435]
[1737654327660,6.22235088,252.88,252.82,23.776884]
[1737654328267,3.9527,252.99,252.82,23.776884]
[1737654328436,20.0,252.97,252.83,3.9552]
[1737654328643,3.9527,252.99,252.83,3.9552]
[1737654329367,3.9527,252.99,252.84,23.776884]
[1737654329666,3.9524,253.01,252.84,27.731784]
[1737654330062,12.23393229,253.0,252.84,27.731784]
[1737654330564,12.23393229,253.0,252.87,312.0]
[1737654330764,20.0,252.99,252.87,312.0]
[1737654331158,23.9528,252.99,252.87,312.0]
[1737654331467,0.03,252.97,252.87,312.0]
[1737654331839,0.03,252.97,252.77,1.6092]
[1737654331840,12.23393229,252.88,252.77,1.6092]
[1737654332064,12.23393229,252.86,252.77,1.6092]
[1737654332841,12.23393229,252.86,252.75,10.3176]
[1737654332842,12.23393229,252.84,252.75,6.3612]
[1737654333048,16.18973229,252.8,252.69,6.3612]
[1737654333243,12.23393229,252.78,252.69,6.3612]
[1737654333452,12.23393229,252.76,252.69,6.3612]
[1737654333645,12.23393229,252.76,252.63,1.6092]
[1737654333646,19.54476318,252.71,252.63,1.6092]
[1737654333851,19.54476318,252.71,252.62,6.3612]
[1737654334068,1.0,252.79,252.62,6.3612]
[1737654334069,19.54476318,252.69,252.62,6.3612]
[1737654334275,19.54476318,252.69,252.57,3.9592]
[1737654334669,19.54476318,252.69,252.58,23.776884]
[1737654334974,19.54476318,252.69,252.58,312.0]
[1737654335176,19.54476318,252.67,252.55,10.3382]
[1737654335364,19.54476318,252.65,252.55,6.3787]
[1737654335666,19.54476318,252.63,252.51,3.9601]
[1737654336072,19.54476318,252.63,252.52,23.776884]
[1737654336253,10.8909,252.76,252.54,23.776884]
[1737654336254,19.54476318,252.69,252.54,23.776884]
[1737654336455,19.54476318,252.73,252.56,1.0]
[1737654336962,19.54476318,252.73,252.51,3.9601]
[1737654336963,19.54476318,252.71,252.52,1.0]
[1737654337169,19.54476318,252.71,252.54,3.9597]
[1737654337365,19.54476318,252.67,252.54,3.9597]
[1737654337788,19.54476318,252.71,252.55,24.776884]
[1737654338174,19.54476318,252.73,252.59,23.776884]
[1737654338481,1.0,252.82,252.59,24.776884]
[1737654338482,19.54476318,252.75,252.59,24.776884]
[1737654339472,19.54476318,252.75,252.6,3.9588]
[1737654339664,19.54476318,252.71,252.6,3.9588]
[1737654340559,19.54476318,252.73,252.6,3.9588]
[1737654341058,19.54476318,252.75,252.61,23.776884]
[1737654341682,19.54476318,252.75,252.63,23.776884]
[1737654341875,19.54476318,252.78,252.63,23.776884]
[1737654342071,19.54476318,252.8,252.64,6.3796]
[1737654342583,19.54476318,252.78,252.64,6.3796]
[1737654342785,19.54476318,252.76,252.65,3.958]
[1737654343884,19.54476318,252.8,252.66,23.776884]
[1737654344180,19.54476318,252.82,252.66,24.776884]
[1737654344364,19.54476318,252.82,252.66,23.776884]
[1737654344755,19.54476318,252.82,252.66,24.776884]
[1737654344989,19.54476318,252.82,252.67,3.9577]
[1737654345167,19.54476318,252.84,252.7,23.776884]
[1737654345370,19.57476318,252.86,252.7,23.776884]
[1737654345585,19.57476318,252.86,252.68,23.776884]
[1737654345768,19.57476318,252.86,252.7,1.0]
[1737654346083,19.57476318,252.86,252.69,1.0]
[1737654346285,19.57476318,252.86,252.68,23.776884]
[1737654346885,19.54476318,252.84,252.69,3.9574]
[1737654347383,19.54476318,252.84,252.7,23.776884]
[1737654347566,19.57476318,252.86,252.7,23.776884]
[1737654347770,0.03,252.86,252.7,23.776884]
[1737654348591,0.03,252.86,252.74,312.0]
[1737654349087,0.03,252.86,252.75,3.9564]
[1737654349392,19.57476318,252.86,252.75,3.9564]
[1737654350190,19.57476318,252.86,252.7,23.776884]
[1737654350393,0.03,252.86,252.75,20.0]
[1737654350693,0.03,252.86,252.76,23.776884]
[1737654351993,0.03,252.86,252.71,13.8498]
[1737654351994,0.03,252.86,252.7,1.0]
[1737654352195,0.03,252.86,252.76,312.0]
[1737654353476,0.03,252.86,252.77,3.9561]
[1737654355692,0.03,252.86,252.72,9.8923]
[1737654355879,0.03,252.86,252.73,23.776884]
[1737654356495,0.03,252.86,252.73,335.776884]
[1737654356692,12.20186066,252.87,252.73,335.776884]
[1737654357200,12.20186066,252.87,252.75,23.776884]
[1737654357398,12.20186066,252.87,252.74,13.8481]
[1737654358282,12.20186066,252.87,252.75,23.776884]
[1737654358471,12.20186066,252.87,252.76,3.9563]
[1737654359084,12.20186066,252.85,252.76,3.9563]
[1737654360203,12.20186066,252.85,252.7,37.627184]
[1737654361210,12.20186066,252.89,252.72,23.776884]
[1737654361388,12.20186066,252.87,252.71,23.776884]
[1737654361707,12.20186066,252.92,252.78,23.776884]
[1737654362082,12.20186066,252.97,252.81,1.0]
[1737654362402,12.20186066,252.99,252.85,23.776884]
[1737654362702,12.20186066,252.99,252.82,23.776884]
[1737654363088,12.20186066,252.99,252.82,20.0]
[1737654363610,12.20186066,252.99,252.82,21.88005138]
[1737654363799,12.20186066,252.97,252.83,23.776884]
[1737654364100,12.20186066,252.99,252.85,23.776884]
[1737654364686,12.20186066,252.97,252.85,23.776884]
[1737654365606,12.20186066,252.95,252.84,3.955]
[1737654365976,12.20186066,252.93,252.84,3.955]
[1737654366895,12.20186066,252.91,252.84,3.955]
[1737654367085,12.20186066,252.91,252.8,9.889]
[1737654367086,12.20186066,252.93,252.8,9.889]
[1737654367286,12.20186066,252.93,252.81,23.776884]
[1737654367683,12.20186066,252.91,252.78,3.956]
[1737654367882,12.20186066,252.87,252.78,3.956]
[1737654368083,12.20186066,252.89,252.78,3.956]
[1737654368806,12.20186066,252.85,252.81,0.063]
[1737654370888,12.20186066,252.83,252.81,0.063]
[1737654374413,5.6004,252.82,252.81,0.063]
[1737654374709,20.0,252.79,252.69,0.063]
[1737654375015,12.20186066,252.71,252.69,0.063]
[1737654376907,53.78,252.7,252.69,0.063]
[1737654377311,12.20186066,252.71,252.69,0.063]
[1737654377700,19.54524121,252.72,252.69,0.063]
[1737654378613,19.54524121,252.74,252.69,0.063]
[1737654379016,19.54524121,252.74,252.69,4.0203]
[1737654379514,19.54524121,252.76,252.69,4.0203]
[1737654379693,19.54524121,252.78,252.69,4.0203]
[1737654380088,19.54524121,252.76,252.69,0.063]
[1737654380510,19.54524121,252.73,252.69,0.063]
[1737654381218,19.54524121,252.71,252.69,0.063]
[1737654382937,19.54524121,252.76,252.69,0.063]
[1737654384595,19.54524121,252.74,252.69,0.063]
[1737654384997,19.54524121,252.76,252.69,0.063]
[1737654385201,19.54524121,252.74,252.69,0.063]
[1737654385601,19.54524121,252.72,252.69,0.063]
[1737654386422,19.54524121,252.7,252.69,0.063]
[1737654386623,19.54524121,252.72,252.69,0.063]
[1737654389829,19.54524121,252.7,252.69,0.063]
[1737654390421,23.50244121,252.7,252.69,0.063]
[1737654390624,23.50244121,252.7,252.6,0.063]
[1737654390625,20.0,252.67,252.6,0.063]
[1737654390930,19.54524121,252.61,252.6,0.063]
[1737654391115,19.46412821,252.61,252.6,0.063]
[1737654391314,19.54524121,252.64,252.6,0.063]
[1737654391514,19.54524121,252.66,252.6,4.0216]
[1737654391724,20.0,252.67,252.6,0.063]
[1737654391725,19.54524121,252.64,252.6,0.063]
[1737654392825,49.54524121,252.7,252.6,4.0217]
[1737654393003,19.54524121,252.68,252.6,4.0217]
[1737654393208,19.54524121,252.77,252.62,6.0953]
[1737654393715,3.9856,252.81,252.62,6.0953]
[1737654393716,19.54524121,252.73,252.62,6.0953]
[1737654393910,19.54524121,252.75,252.62,6.0953]
[1737654394111,19.54524121,252.77,252.63,23.776884]
[1737654394428,19.54524121,252.77,252.64,13.8537]